Workbook

Sheet Februari 2019
A1: Maand
C2: 2019-02-01 | K2: 2019-02-02 | S2: 2019-02-03 | AA2: 2019-02-04 | AI2: 2019-02-05 | AQ2: 2019-02-06 | AY2: 2019-02-07 | BG2: 2019-02-08 | BO2: 2019-02-09 | BW2: 2019-02-10 | CE2: 2019-02-11 | CM2: 2019-02-12 | CU2: 2019-02-13 | DC2: 2019-02-14 | DK2: 2019-02-15 | DS2: 2019-02-16 | EA2: 2019-02-17 | EI2: 2019-02-18 | EQ2: 2019-02-19 | EY2: 2019-02-20 | FG2: 2019-02-21 | FO2: 2019-02-22 | FW2: 2019-02-23 | GE2: 2019-02-24 | GM2: 2019-02-25 | GU2: 2019-02-26 | HC2: 2019-02-27 | HK2: 2019-02-28
C3: Taak | D3: Soort activiteit | E3: Beschrijving | F3: Type | G3: Imputatienummer | H3: uren | I3: Overuren | J3: Opmerkingen | K3: Taak | L3: Soort activiteit | M3: Beschrijving | N3: Type | O3: Imputatienummer | P3: uren | Q3: Overuren | R3: Opmerkingen | S3: Taak | T3: Soort activiteit | U3: Beschrijving | V3: Type | W3: Imputatienummer | X3: uren | Y3: Overuren | Z3: Opmerkingen | AA3: Taak | AB3: Soort activiteit | AC3: Beschrijving | AD3: Type | AE3: Imputatienummer | AF3: uren | AG3: Overuren | AH3: Opmerkingen | AI3: Taak | AJ3: Soort activiteit | AK3: Beschrijving | AL3: Type | AM3: Imputatienummer | AN3: uren | AO3: Overuren | AP3: Opmerkingen | AQ3: Taak | AR3: Soort activiteit | AS3: Beschrijving | AT3: Type | AU3: Imputatienummer | AV3: uren | AW3: Overuren | AX3: Opmerkingen | AY3: Taak | AZ3: Soort activiteit | BA3: Beschrijving | BB3: Type | BC3: Imputatienummer | BD3: uren | BE3: Overuren | BF3: Opmerkingen | BG3: Taak | BH3: Soort activiteit | BI3: Beschrijving | BJ3: Type | BK3: Imputatienummer | BL3: uren | BM3: Overuren | BN3: Opmerkingen | BO3: Taak | BP3: Soort activiteit | BQ3: Beschrijving | BR3: Type | BS3: Imputatienummer | BT3: uren | BU3: Overuren | BV3: Opmerkingen | BW3: Taak | BX3: Soort activiteit | BY3: Beschrijving | BZ3: Type | CA3: Imputatienummer | CB3: uren | CC3: Overuren | CD3: Opmerkingen | CE3: Taak | CF3: Soort activiteit | CG3: Beschrijving | CH3: Type | CI3: Imputatienummer | CJ3: uren | CK3: Overuren | CL3: Opmerkingen | CM3: Taak | CN3: Soort activiteit | CO3: Beschrijving | CP3: Type | CQ3: Imputatienummer | CR3: uren | CS3: Overuren | CT3: Opmerkingen | CU3: Taak | CV3: Soort activiteit | CW3: Beschrijving | CX3: Type | CY3: Imputatienummer | CZ3: uren | DA3: Overuren | DB3: Opmerkingen | DC3: Taak | DD3: Soort activiteit | DE3: Beschrijving | DF3: Type | DG3: Imputatienummer | DH3: uren | DI3: Overuren | DJ3: Opmerkingen | DK3: Taak | DL3: Soort activiteit | DM3: Beschrijving | DN3: Type | DO3: Imputatienummer | DP3: uren | DQ3: Overuren | DR3: Opmerkingen | DS3: Taak | DT3: Soort activiteit | DU3: Beschrijving | DV3: Type | DW3: Imputatienummer | DX3: uren | DY3: Overuren | DZ3: Opmerkingen | EA3: Taak | EB3: Soort activiteit | EC3: Beschrijving | ED3: Type | EE3: Imputatienummer | EF3: uren | EG3: Overuren | EH3: Opmerkingen | EI3: Taak | EJ3: Soort activiteit | EK3: Beschrijving | EL3: Type | EM3: Imputatienummer | EN3: uren | EO3: Overuren | EP3: Opmerkingen | EQ3: Taak | ER3: Soort activiteit | ES3: Beschrijving | ET3: Type | EU3: Imputatienummer | EV3: uren | EW3: Overuren | EX3: Opmerkingen | EY3: Taak | EZ3: Soort activiteit | FA3: Beschrijving | FB3: Type | FC3: Imputatienummer | FD3: uren | FE3: Overuren | FF3: Opmerkingen | FG3: Taak | FH3: Soort activiteit | FI3: Beschrijving | FJ3: Type | FK3: Imputatienummer | FL3: uren | FM3: Overuren | FN3: Opmerkingen | FO3: Taak | FP3: Soort activiteit | FQ3: Beschrijving | FR3: Type | FS3: Imputatienummer | FT3: uren | FU3: Overuren | FV3: Opmerkingen | FW3: Taak | FX3: Soort activiteit | FY3: Beschrijving | FZ3: Type | GA3: Imputatienummer | GB3: uren | GC3: Overuren | GD3: Opmerkingen | GE3: Taak | GF3: Soort activiteit | GG3: Beschrijving | GH3: Type | GI3: Imputatienummer | GJ3: uren | GK3: Overuren | GL3: Opmerkingen | GM3: Taak | GN3: Soort activiteit | GO3: Beschrijving | GP3: Type | GQ3: Imputatienummer | GR3: uren | GS3: Overuren | GT3: Opmerkingen | GU3: Taak | GV3: Soort activiteit | GW3: Beschrijving | GX3: Type | GY3: Imputatienummer | GZ3: uren | HA3: Overuren | HB3: Opmerkingen | HC3: Taak | HD3: Soort activiteit | HE3: Beschrijving | HF3: Type | HG3: Imputatienummer | HH3: uren | HI3: Overuren | HJ3: Opmerkingen | HK3: Taak | HL3: Soort activiteit | HM3: Beschrijving | HN3: Type | HO3: Imputatienummer | HP3: uren | HQ3: Overuren | HR3: Opmerkingen
CM4: oliestaalname | EQ4: Inductie | FO4: Surveillance system
CM5: EPC-O&M | EQ5: Cleaning | EY5: O&M
CM6: herstellen fan cooler | CU6: SF6-lek oplossen | EI6: GIS MM | EQ6: Vincotte | EY6: Asfalt | GM6: Vergunningen updaten | GU6: WM Diesel
CE7: Fan outdoor cooler | CM7: Fire protection | CU7: olie drainage TFO | EI7: TFO MM | EQ7: Diesel MM | EY7: Building MM | GU7: WM CWC
CM8: IT elia | EQ8: CWC MM | EY8: IT elia
B10: z | G10: =IFERROR(INDIRECT(F10),"") ->  | O10: =IFERROR(INDIRECT(N10),"") ->  | W10: =IFERROR(INDIRECT(V10),"") ->  | AB10: Algemene_activiteit | AC10: coordinatie werken - voorbereiding | AD10: Fixed | AE10: =IFERROR(INDIRECT(AD10),"") -> ST-00309-01-01 | AF10: 4 | AJ10: Algemene_activiteit | AK10: coordinatie werken - uitvoering | AL10: Fixed | AM10: =IFERROR(INDIRECT(AL10),"") -> ST-00309-01-01 | AN10: 3 | AR10: Algemene_activiteit | AS10: handover project (labeling, verificatie AsBuilts, manuals, …) | AT10: Fixed | AU10: =IFERROR(INDIRECT(AT10),"") -> ST-00309-01-01 | AV10: 3.75 | AZ10: Algemene_activiteit | BA10: planning en coordinatie werken | BB10: Meeting | BC10: =IFERROR(INDIRECT(BB10),"") -> ST-00309-01-03 | BD10: 4 | BH10: Algemene_activiteit | BI10: peterschap post | BJ10: Fixed | BK10: =IFERROR(INDIRECT(BJ10),"") -> ST-00309-01-01 | BL10: 3 | BS10: =IFERROR(INDIRECT(BR10),"") ->  | CA10: =IFERROR(INDIRECT(BZ10),"") ->  | CE10: Fan outdoor cooler | CF10: Algemene_activiteit | CG10: coordinatie werken - voorbereiding | CH10: Fixed | CI10: =IFERROR(INDIRECT(CH10),"") -> ST-00309-01-01 | CJ10: 2 | CL10: prep SP | CM10: herstellen fan cooler | CN10: Algemene_activiteit | CO10: coordinatie werken - uitvoering | CP10: Fixed | CQ10: =IFERROR(INDIRECT(CP10),"") -> ST-00309-01-01 | CR10: 1.25 | CU10: SF6 lek | CV10: curatief_onderhoud | CW10: HV - AC switchgear | CX10: Variable | CY10: =IFERROR(INDIRECT(CX10),"") -> ST-00309-02-01 | DA10: 2 | DD10: Algemene_activiteit | DE10: planning en coordinatie werken | DF10: Meeting | DG10: =IFERROR(INDIRECT(DF10),"") -> ST-00309-01-03 | DH10: 2.5 | DL10: Algemene_activiteit | DM10: administratie | DN10: Fixed | DO10: =IFERROR(INDIRECT(DN10),"") -> ST-00309-01-01 | DP10: 4 | DW10: =IFERROR(INDIRECT(DV10),"") ->  | EE10: =IFERROR(INDIRECT(ED10),"") ->  | EJ10: Algemene_activiteit | EK10: coordinatie werken - uitvoering | EL10: Fixed | EM10: =IFERROR(INDIRECT(EL10),"") -> ST-00309-01-01 | EN10: 1 | EQ10: Geven inductie | ER10: Algemene_activiteit | ES10: veiligheidsopleidingen geven | ET10: Fixed | EU10: =IFERROR(INDIRECT(ET10),"") -> ST-00309-01-01 | EV10: 1.5 | EY10: Opleiding MSP | FB10: Niet_Nemo_activiteit | FC10: =IFERROR(INDIRECT(FB10),"") -> Elia-imp. Nummer | FD10: 7.75 | FG10: Opleiding MSP | FJ10: Niet_Nemo_activiteit | FK10: =IFERROR(INDIRECT(FJ10),"") -> Elia-imp. Nummer | FL10: 7.75 | FP10: Algemene_activiteit | FQ10: schakelen en veiligstellen | FR10: Niet_Nemo_activiteit | FS10: =IFERROR(INDIRECT(FR10),"") -> Elia-imp. Nummer | FT10: 2.5 | FV10: Schakelen 150-385 | GA10: =IFERROR(INDIRECT(FZ10),"") ->  | GI10: =IFERROR(INDIRECT(GH10),"") ->  | GM10: Vergunningen updaten | GN10: Algemene_activiteit | GO10: coordinatie werken - uitvoering | GP10: Fixed | GQ10: =IFERROR(INDIRECT(GP10),"") -> ST-00309-01-01 | GR10: 3 | GT10: Coördinatie werken openstaande punte n vincotte | GU10: MAC extended | GV10: Algemene_activiteit | GX10: Niet_Nemo_activiteit | GY10: =IFERROR(INDIRECT(GX10),"") -> Elia-imp. Nummer | GZ10: 4.75 | HB10: MAC extended | HD10: Algemene_activiteit | HE10: coordinatie werken - uitvoering | HF10: Fixed | HG10: =IFERROR(INDIRECT(HF10),"") -> ST-00309-01-01 | HH10: 5 | HK10: Weekly meetings | HL10: Algemene_activiteit | HM10: coordinatie werken - voorbereiding | HN10: Meeting | HO10: =IFERROR(INDIRECT(HN10),"") -> ST-00309-01-03 | HP10: 3
G11: =IFERROR(INDIRECT(F11),"") ->  | O11: =IFERROR(INDIRECT(N11),"") ->  | AB11: Algemene_activiteit | AC11: coordinatie werken - uitvoering | AD11: Fixed | AE11: ST-00309-01-01 | AF11: 2 | AJ11: Algemene_activiteit | AK11: coordinatie werken - voorbereiding | AL11: Fixed | AM11: ST-00309-01-01 | AN11: 2 | AR11: Algemene_activiteit | AS11: administratie | AT11: Niet_Nemo_activiteit | AU11: Elia-imp. Nummer | AZ11: curatief_onderhoud | BA11: Building - site access and security | BB11: Fixed | BC11: ST-00309-01-01 | BD11: 2 | CF11: Algemene_activiteit | CG11: coordinatie werken - uitvoering | CH11: Fixed | CI11: ST-00309-01-01 | CJ11: 2 | CL11: Engie | CM11: Fire protection | CN11: Algemene_activiteit | CO11: coordinatie werken - uitvoering | CP11: Fixed | CQ11: =IFERROR(INDIRECT(CP11),"") -> ST-00309-01-01 | CR11: 1 | CV11: Algemene_activiteit | CW11: Incident analyse | CX11: Variable | CY11: =IFERROR(INDIRECT(CX11),"") -> ST-00309-02-01 | CZ11: 3 | DB11: analyse en comm incident RB | DD11: Algemene_activiteit | DE11: planning en coordinatie werken | DF11: Fixed | DG11: =IFERROR(INDIRECT(DF11),"") -> ST-00309-01-01 | DH11: 2 | DL11: Algemene_activiteit | DM11: coordinatie werken - uitvoering | DN11: Fixed | DO11: =IFERROR(INDIRECT(DN11),"") -> ST-00309-01-01 | DP11: 3 | DR11: coördinatie WM en Engie | DW11: =IFERROR(INDIRECT(DV11),"") ->  | EJ11: Algemene_activiteit | EK11: coordinatie werken - voorbereiding | EL11: Fixed | EM11: ST-00309-01-01 | EN11: 2 | EQ11: MM diesel | ER11: preventatief_onderhoud | ES11: auxiliary power supply | ET11: Fixed | EU11: =IFERROR(INDIRECT(ET11),"") -> ST-00309-01-01 | EV11: 1 | FC11: =IFERROR(INDIRECT(FB11),"") ->  | FK11: =IFERROR(INDIRECT(FJ11),"") ->  | FP11: Algemene_activiteit | FQ11: coordinatie werken - voorbereiding | FR11: Fixed | FS11: =IFERROR(INDIRECT(FR11),"") -> ST-00309-01-01 | FT11: 3 | FV11: WVB week 9 | GA11: =IFERROR(INDIRECT(FZ11),"") ->  | GI11: =IFERROR(INDIRECT(GH11),"") ->  | GN11: Algemene_activiteit | GO11: coordinatie werken - voorbereiding | GP11: Fixed | GQ11: ST-00309-01-01 | GR11: 3 | GT11: voorbereiding WM + overlopen RAMS | GV11: Algemene_activiteit | GW11: administratie | GX11: Fixed | GY11: ST-00309-01-01 | GZ11: 3 | HB11: inplannen TNP met correcte codes | HD11: preventatief_onderhoud | HE11: auxiliary power supply | HF11: Variable | HG11: =IFERROR(INDIRECT(HF11),"") -> ST-00309-02-01 | HI11: 5 | HJ11: monthly dieseltest met alarmen nadien | HL11: Algemene_activiteit | HM11: coordinatie werken - uitvoering | HN11: Fixed | HO11: =IFERROR(INDIRECT(HN11),"") -> ST-00309-01-01 | HP11: 2
AB12: Algemene_activiteit | AC12: handover project (labeling, verificatie AsBuilts, manuals, …) | AD12: Fixed | AE12: ST-00309-01-01 | AF12: 1.75 | AJ12: Algemene_activiteit | AK12: administratie | AL12: Fixed | AM12: ST-00309-01-01 | AN12: 2.75 | AR12: Algemene_activiteit | AS12: handover project (labeling, verificatie AsBuilts, manuals, …) | AT12: Variable | AU12: ST-00309-02-01 | AW12: 2 | AZ12: Algemene_activiteit | BA12: coordinatie werken - uitvoering | BB12: Variable | BC12: ST-00309-02-01 | BE12: 1.5 | CF12: curatief_onderhoud | CG12: Building - site access and security | CH12: Variable | CI12: ST-00309-02-01 | CJ12: 1.75 | CL12: check fence detection nav alarm | CN12: Algemene_activiteit | CO12: veiligheidsopleidingen geven | CP12: Fixed | CQ12: =IFERROR(INDIRECT(CP12),"") -> ST-00309-01-01 | CR12: 1.5 | CT12: Inducite Thermoco | CV12: curatief_onderhoud | CW12: HV - Interface transformer | CX12: Variable | CY12: =IFERROR(INDIRECT(CX12),"") -> ST-00309-02-01 | CZ12: 1.5 | DB12: drain oil TFO L3 | DD12: Algemene_activiteit | DE12: coordinatie werken - uitvoering | DF12: Fixed | DG12: =IFERROR(INDIRECT(DF12),"") -> ST-00309-01-01 | DH12: 2 | DJ12: Coördinatie open punten project | DO12: =IFERROR(INDIRECT(DN12),"") ->  | DW12: =IFERROR(INDIRECT(DV12),"") ->  | EI12: GIS MM/ TFO MM | EJ12: preventief_onderhoud | EL12: Fixed | EM12: ST-00309-01-01 | EN12: 2 | EQ12: diesel | ER12: Algemene_activiteit | ES12: coordinatie werken - uitvoering | ET12: Fixed | EU12: =IFERROR(INDIRECT(ET12),"") -> ST-00309-01-01 | EV12: 2 | FC12: =IFERROR(INDIRECT(FB12),"") ->  | FK12: =IFERROR(INDIRECT(FJ12),"") ->  | FP12: Algemene_activiteit | FQ12: administratie | FR12: Fixed | FS12: =IFERROR(INDIRECT(FR12),"") -> ST-00309-01-01 | FT12: 1.5 | GA12: =IFERROR(INDIRECT(FZ12),"") ->  | GI12: =IFERROR(INDIRECT(GH12),"") ->  | GN12: Algemene_activiteit | GO12: administratie | GP12: Fixed | GQ12: ST-00309-01-01 | GR12: 1.75 | GT12: voorbereiding equipe | HD12: Algemene_activiteit | HE12: administratie | HF12: Fixed | HG12: =IFERROR(INDIRECT(HF12),"") -> ST-00309-01-01 | HH12: 2.75 | HL12: Algemene_activiteit | HM12: administratie | HN12: Fixed | HO12: =IFERROR(INDIRECT(HN12),"") -> ST-00309-01-01 | HP12: 2.75
G13: =IFERROR(INDIRECT(F13),"") ->  | AB13: Algemene_activiteit | AC13: handover project (labeling, verificatie AsBuilts, manuals, …) | AD13: Variable | AE13: ST-00309-02-01 | AG13: 1.5 | AH13: support project Siemens | AJ13: Algemene_activiteit | AK13: handover project (labeling, verificatie AsBuilts, manuals, …) | AL13: Variable | AM13: ST-00309-02-01 | AO13: 1 | AZ13: Algemene_activiteit | BA13: coordinatie werken - uitvoering | BB13: Fixed | BC13: ST-00309-01-01 | BD13: 1.75 | CF13: Algemene_activiteit | CG13: planning en coordinatie werken | CH13: Meeting | CI13: ST-00309-01-03 | CJ13: 2 | CL13: F2F | CM13: EPC-O&M | CN13: Algemene_activiteit | CO13: handover project (labeling, verificatie AsBuilts, manuals, …) | CP13: Meeting | CQ13: =IFERROR(INDIRECT(CP13),"") -> ST-00309-01-03 | CR13: 2 | CV13: Algemene_activiteit | CW13: planning en coordinatie werken | CX13: Fixed | CY13: =IFERROR(INDIRECT(CX13),"") -> ST-00309-01-01 | CZ13: 3.25 | DG13: =IFERROR(INDIRECT(DF13),"") ->  | DO13: =IFERROR(INDIRECT(DN13),"") ->  | DW13: =IFERROR(INDIRECT(DV13),"") ->  | EJ13: Algemene_activiteit | EK13: administratie | EL13: Fixed | EM13: ST-00309-01-01 | EN13: 2.75 | ER13: Algemene_activiteit | ES13: coordinatie werken - voorbereiding | ET13: Fixed | EU13: =IFERROR(INDIRECT(ET13),"") -> ST-00309-01-01 | EV13: 1 | FC13: =IFERROR(INDIRECT(FB13),"") ->  | FK13: =IFERROR(INDIRECT(FJ13),"") ->  | FS13: =IFERROR(INDIRECT(FR13),"") ->  | GA13: =IFERROR(INDIRECT(FZ13),"") ->  | GI13: =IFERROR(INDIRECT(GH13),"") ->  | HG13: =IFERROR(INDIRECT(HF13),"") ->  | HO13: =IFERROR(INDIRECT(HN13),"") -> 
G14: =IFERROR(INDIRECT(F14),"") ->  | O14: =IFERROR(INDIRECT(N14),"") ->  | W14: =IFERROR(INDIRECT(V14),"") ->  | AE14: =IFERROR(INDIRECT(AD14),"") ->  | AM14: =IFERROR(INDIRECT(AL14),"") ->  | AU14: =IFERROR(INDIRECT(AT14),"") ->  | BC14: =IFERROR(INDIRECT(BB14),"") ->  | BK14: =IFERROR(INDIRECT(BJ14),"") ->  | BS14: =IFERROR(INDIRECT(BR14),"") ->  | CA14: =IFERROR(INDIRECT(BZ14),"") ->  | CF14: Algemene_activiteit | CG14: coordinatie werken - uitvoering | CH14: Variable | CI14: ST-00309-02-01 | CJ14: 1 | CL14: Sven | CM14: SF6 alarm | CN14: incident _preparedness_and_procedures | CP14: Variable | CQ14: ST-00309-02-01 | CR14: 2 | CS14: 2 | CT14: voorbereiding herstelling | CV14: Algemene_activiteit | CW14: interventie wacht | CX14: Variable | CY14: ST-00309-02-01 | DA14: 2.5 | DB14: intruder system | EE14: =IFERROR(INDIRECT(ED14),"") ->  | EM14: =IFERROR(INDIRECT(EL14),"") ->  | ER14: Algemene_activiteit | ES14: administratie | ET14: Fixed | EU14: ST-00309-01-01 | EV14: 2.25 | GQ14: =IFERROR(INDIRECT(GP14),"") ->  | GY14: =IFERROR(INDIRECT(GX14),"") -> 
CQ15: =IFERROR(INDIRECT(CP15),"") ->  | CY15: =IFERROR(INDIRECT(CX15),"") ->  | DG15: =IFERROR(INDIRECT(DF15),"") ->  | DO15: =IFERROR(INDIRECT(DN15),"") ->  | DW15: =IFERROR(INDIRECT(DV15),"") ->  | EU15: =IFERROR(INDIRECT(ET15),"") ->  | FC15: =IFERROR(INDIRECT(FB15),"") ->  | FK15: =IFERROR(INDIRECT(FJ15),"") ->  | FS15: =IFERROR(INDIRECT(FR15),"") ->  | GA15: =IFERROR(INDIRECT(FZ15),"") ->  | GI15: =IFERROR(INDIRECT(GH15),"") ->  | HG15: =IFERROR(INDIRECT(HF15),"") ->  | HO15: =IFERROR(INDIRECT(HN15),"") -> 
B16: y | D16: Algemene_activiteit | E16: handover project (labeling, verificatie AsBuilts, manuals, …) | F16: Fixed | G16: =IFERROR(INDIRECT(F16),"") -> ST-00309-01-01 | H16: 4 | AJ16: curatief_onderhoud | AK16: C&P - AC | AL16: Fixed | AM16: ST-00309-01-01 | AN16: 2 | AR16: Algemene_activiteit | AS16: handover project (labeling, verificatie AsBuilts, manuals, …) | AT16: Fixed | AU16: ST-00309-01-01 | AV16: 6.75 | AZ16: curatief_onderhoud | BA16: C&P - AC | BB16: Fixed | BC16: ST-00309-01-01 | BD16: 3 | BH16: curatief_onderhoud | BI16: C&P - AC | BJ16: Fixed | BK16: ST-00309-01-01 | BL16: 1 | CM16: Oliestaalname | CN16: Algemene_activiteit | CP16: Niet_Nemo_activiteit | CQ16: =IFERROR(INDIRECT(CP16),"") -> Elia-imp. Nummer | CR16: 7.75 | CU16: SF6 lek | CV16: curatief_onderhoud | CW16: HV - AC switchgear | CX16: Variable | CY16: ST-00309-02-01 | DA16: 2 | DD16: Algemene_activiteit | DE16: Incident analyse | DF16: Variable | DG16: ST-00309-02-01 | DH16: 2 | DJ16: analyse op OTS | DL16: Algemene_activiteit | DM16: handover project (labeling, verificatie AsBuilts, manuals, …) | DN16: Variable | DO16: =IFERROR(INDIRECT(DN16),"") -> ST-00309-02-01 | DP16: 7 | DR16: Algemene set-up site, IP telefonie,… | DW16: =IFERROR(INDIRECT(DV16),"") ->  | EJ16: Algemene_activiteit | EK16: interventie wacht | EL16: Variable | EM16: ST-00309-02-01 | EO16: 1.75 | EP16: fout inbraaksysteem | ER16: Algemene_activiteit | ES16: coordinatie werken - uitvoering | ET16: Fixed | EU16: ST-00309-01-01 | EV16: 3.75 | EZ16: curatief_onderhoud | FA16: Building - site access and security | FB16: Variable | FC16: =IFERROR(INDIRECT(FB16),"") -> ST-00309-02-01 | FD16: 2.5 | FE16: 2.5 | FF16: problemen met inbraakalarm/ schuifpoort | FH16: Algemene_activiteit | FI16: coordinatie werken - uitvoering | FJ16: Fixed | FK16: =IFERROR(INDIRECT(FJ16),"") -> ST-00309-01-01 | FL16: 2 | FM16: 1 | FN16: Organisatie site, toegang, … | FP16: Algemene_activiteit | FQ16: handover project (labeling, verificatie AsBuilts, manuals, …) | FR16: Fixed | FS16: =IFERROR(INDIRECT(FR16),"") -> ST-00309-01-01 | FT16: 4 | FV16: verificatie werking CWC, HVAC | GA16: =IFERROR(INDIRECT(FZ16),"") ->  | GI16: =IFERROR(INDIRECT(GH16),"") ->  | HG16: =IFERROR(INDIRECT(HF16),"") ->  | HO16: =IFERROR(INDIRECT(HN16),"") -> 
D17: Algemene_activiteit | E17: schakelen en veiligstellen | F17: Fixed | G17: ST-00309-01-01 | H17: 2 | AJ17: preventatief_onderhoud | AK17: CWC | AL17: Fixed | AM17: ST-00309-01-01 | AN17: 1 | AR17: Algemene_activiteit | AS17: coordinatie werken - voorbereiding | AT17: Fixed | AU17: ST-00309-01-01 | AV17: 1 | AZ17: curatief_onderhoud | BA17: Building - site access and security | BB17: Fixed | BC17: ST-00309-01-01 | BD17: 2 | BH17: Algemene_activiteit | BI17: administratie | BJ17: Fixed | BK17: ST-00309-01-01 | BL17: 4 | CQ17: =IFERROR(INDIRECT(CP17),"") ->  | CY17: =IFERROR(INDIRECT(CX17),"") ->  | DD17: Algemene_activiteit | DE17: handover project (labeling, verificatie AsBuilts, manuals, …) | DF17: Fixed | DG17: ST-00309-01-01 | DH17: 2.75 | DJ17: contorle OTS op juistheid | DO17: =IFERROR(INDIRECT(DN17),"") ->  | DW17: =IFERROR(INDIRECT(DV17),"") ->  | ER17: Algemene_activiteit | ES17: interventie wacht | ET17: Variable | EU17: ST-00309-02-01 | EV17: 1 | EX17: afhandeling interventie wacht | EZ17: Algemene_activiteit | FA17: coordinatie werken - uitvoering | FB17: Fixed | FC17: =IFERROR(INDIRECT(FB17),"") -> ST-00309-01-01 | FD17: 3 | FF17: WVG, HW, toegang site | FH17: curatief_onderhoud | FI17: Building - site access and security | FJ17: Variable | FK17: =IFERROR(INDIRECT(FJ17),"") -> ST-00309-02-01 | FL17: 2 | FN17: fout inbraakalarm | FP17: Algemene_activiteit | FQ17: algemene technische opleidingen krijgen (hoogwerker, stelling ,…) | FR17: Fixed | FS17: ST-00309-01-01 | FT17: 2 | FV17: wegwijsmaken Brecht | GA17: =IFERROR(INDIRECT(FZ17),"") ->  | GI17: =IFERROR(INDIRECT(GH17),"") ->  | HG17: =IFERROR(INDIRECT(HF17),"") ->  | HO17: =IFERROR(INDIRECT(HN17),"") -> 
D18: curatief_onderhoud | E18: C&P - AC | F18: Variable | G18: ST-00309-02-01 | H18: 1 | I18: 2 | AJ18: Algemene_activiteit | AK18: handover project (labeling, verificatie AsBuilts, manuals, …) | AL18: Fixed | AM18: ST-00309-01-01 | AN18: 4.75 | AR18: Algemene_activiteit | AS18: handover project (labeling, verificatie AsBuilts, manuals, …) | AT18: Variable | AU18: ST-00309-02-01 | AV18: 1 | AZ18: Algemene_activiteit | BA18: handover project (labeling, verificatie AsBuilts, manuals, …) | BB18: Fixed | BC18: ST-00309-01-01 | BD18: 2.75 | BH18: Algemene_activiteit | BI18: handover project (labeling, verificatie AsBuilts, manuals, …) | BJ18: Fixed | BK18: ST-00309-01-01 | BL18: 2 | CQ18: =IFERROR(INDIRECT(CP18),"") ->  | CY18: =IFERROR(INDIRECT(CX18),"") ->  | DD18: Algemene_activiteit | DE18: handover project (labeling, verificatie AsBuilts, manuals, …) | DF18: Fixed | DG18: ST-00309-01-01 | DH18: 3 | DJ18: IP telfonie,… | DO18: =IFERROR(INDIRECT(DN18),"") ->  | DW18: =IFERROR(INDIRECT(DV18),"") ->  | ER18: Algemene_activiteit | ES18: Incident analyse | ET18: Variable | EU18: =IFERROR(INDIRECT(ET18),"") -> ST-00309-02-01 | EV18: 3 | EX18: analyse schakeling | EZ18: Algemene_activiteit | FA18: administratie | FB18: Fixed | FC18: =IFERROR(INDIRECT(FB18),"") -> ST-00309-01-01 | FD18: 2.25 | FH18: Algemene_activiteit | FI18: algemene technische opleidingen krijgen (hoogwerker, stelling ,…) | FJ18: Fixed | FK18: =IFERROR(INDIRECT(FJ18),"") -> ST-00309-01-01 | FL18: 2 | FN18: wegwijsmaken Brecht | FP18: Algemene_activiteit | FQ18: administratie | FR18: Fixed | FS18: =IFERROR(INDIRECT(FR18),"") -> ST-00309-01-01 | FT18: 1 | FV18: Overlopen timesheet, gevolgde werken | GA18: =IFERROR(INDIRECT(FZ18),"") ->  | GI18: =IFERROR(INDIRECT(GH18),"") ->  | HG18: =IFERROR(INDIRECT(HF18),"") ->  | HO18: =IFERROR(INDIRECT(HN18),"") -> 
AJ19: Algemene_activiteit | AK19: handover project (labeling, verificatie AsBuilts, manuals, …) | AL19: Variable | AM19: ST-00309-02-01 | AN19: 1 | BH19: Algemene_activiteit | BI19: handover project (labeling, verificatie AsBuilts, manuals, …) | BJ19: Variable | BK19: ST-00309-02-01 | BM19: 1 | CQ19: =IFERROR(INDIRECT(CP19),"") ->  | CY19: =IFERROR(INDIRECT(CX19),"") ->  | DD19: Algemene_activiteit | DE19: coordinatie werken - uitvoering | DF19: Variable | DG19: =IFERROR(INDIRECT(DF19),"") -> ST-00309-02-01 | DH19: 1 | DJ19: afsluiten site | DO19: =IFERROR(INDIRECT(DN19),"") ->  | DW19: =IFERROR(INDIRECT(DV19),"") ->  | ER19: Algemene_activiteit | ES19: coordinatie werken - uitvoering | ET19: Variable | EU19: =IFERROR(INDIRECT(ET19),"") -> ST-00309-02-01 | EW19: 1 | EX19: Afsluiten site, alarm wapenen,… | FC19: =IFERROR(INDIRECT(FB19),"") ->  | FH19: Algemene_activiteit | FI19: handover project (labeling, verificatie AsBuilts, manuals, …) | FJ19: Fixed | FK19: =IFERROR(INDIRECT(FJ19),"") -> ST-00309-01-01 | FL19: 1.75 | FP19: Algemene_activiteit | FQ19: schakelen en veiligstellen | FR19: Variable | FS19: =IFERROR(INDIRECT(FR19),"") -> ST-00309-02-01 | FU19: 2.5 | FV19: Aanwezigheid site nav CWC probleem UK | GA19: =IFERROR(INDIRECT(FZ19),"") ->  | GI19: =IFERROR(INDIRECT(GH19),"") ->  | HG19: =IFERROR(INDIRECT(HF19),"") ->  | HO19: =IFERROR(INDIRECT(HN19),"") -> 
CQ20: =IFERROR(INDIRECT(CP20),"") ->  | CY20: =IFERROR(INDIRECT(CX20),"") ->  | DG20: =IFERROR(INDIRECT(DF20),"") ->  | DO20: =IFERROR(INDIRECT(DN20),"") ->  | DW20: =IFERROR(INDIRECT(DV20),"") ->  | EU20: =IFERROR(INDIRECT(ET20),"") ->  | FC20: =IFERROR(INDIRECT(FB20),"") ->  | FK20: =IFERROR(INDIRECT(FJ20),"") ->  | FS20: =IFERROR(INDIRECT(FR20),"") ->  | GA20: =IFERROR(INDIRECT(FZ20),"") ->  | GI20: =IFERROR(INDIRECT(GH20),"") ->  | HG20: =IFERROR(INDIRECT(HF20),"") ->  | HO20: =IFERROR(INDIRECT(HN20),"") -> 
B21: x | D21: Algemene_activiteit | E21: handover project (labeling, verificatie AsBuilts, manuals, …) | F21: Fixed | G21: ST-00309-01-01 | H21: 3 | CE21: Fan outdoor cooler | CF21: Algemene_activiteit | CG21: coordinatie werken - voorbereiding | CH21: Fixed | CI21: =IFERROR(INDIRECT(CH21),"") -> ST-00309-01-01 | CJ21: 3 | CM21: IT-elia | CN21: Algemene_activiteit | CO21: coordinatie werken - uitvoering | CP21: Fixed | CQ21: =IFERROR(INDIRECT(CP21),"") -> ST-00309-01-01 | CR21: 1.5 | CY21: =IFERROR(INDIRECT(CX21),"") ->  | DD21: Algemene_activiteit | DE21: Incident analyse | DF21: Variable | DG21: =IFERROR(INDIRECT(DF21),"") -> ST-00309-02-01 | DH21: 2 | DJ21: analyse op OTS | DL21: Algemene_activiteit | DM21: coordinatie werken - uitvoering | DN21: Fixed | DO21: ST-00309-01-01 | DP21: 3.25 | DR21: begeleiding Engie | DW21: =IFERROR(INDIRECT(DV21),"") ->  | EU21: =IFERROR(INDIRECT(ET21),"") ->  | FC21: =IFERROR(INDIRECT(FB21),"") ->  | FK21: =IFERROR(INDIRECT(FJ21),"") ->  | FS21: =IFERROR(INDIRECT(FR21),"") ->  | GA21: =IFERROR(INDIRECT(FZ21),"") ->  | GI21: =IFERROR(INDIRECT(GH21),"") ->  | HG21: =IFERROR(INDIRECT(HF21),"") ->  | HO21: =IFERROR(INDIRECT(HN21),"") -> 
D22: Algemene_activiteit | E22: schakelen en veiligstellen | F22: Fixed | G22: ST-00309-01-01 | H22: 2 | CE22: Set-up kitchen | CF22: curatief_onderhoud | CG22: Building, terain and other building services | CH22: Fixed | CI22: =IFERROR(INDIRECT(CH22),"") -> ST-00309-01-01 | CJ22: 1 | CL22: Wisselen warm/koud water | CM22: herstellen fan cooler | CN22: Algemene_activiteit | CO22: coordinatie werken - uitvoering | CP22: Fixed | CQ22: =IFERROR(INDIRECT(CP22),"") -> ST-00309-01-01 | CR22: 3 | CY22: =IFERROR(INDIRECT(CX22),"") ->  | DD22: Algemene_activiteit | DE22: handover project (labeling, verificatie AsBuilts, manuals, …) | DF22: Fixed | DG22: =IFERROR(INDIRECT(DF22),"") -> ST-00309-01-01 | DH22: 2.75 | DJ22: contorle OTS op juistheid | DL22: Algemene_activiteit | DM22: peterschap post | DN22: Fixed | DO22: ST-00309-01-01 | DP22: 1.75 | DR22: organistatie sleutels | DW22: =IFERROR(INDIRECT(DV22),"") ->  | EU22: =IFERROR(INDIRECT(ET22),"") ->  | FC22: =IFERROR(INDIRECT(FB22),"") ->  | FK22: =IFERROR(INDIRECT(FJ22),"") ->  | FS22: =IFERROR(INDIRECT(FR22),"") ->  | GA22: =IFERROR(INDIRECT(FZ22),"") ->  | GI22: =IFERROR(INDIRECT(GH22),"") ->  | HG22: =IFERROR(INDIRECT(HF22),"") ->  | HO22: =IFERROR(INDIRECT(HN22),"") -> 
D23: curatief_onderhoud | E23: C&P - AC | F23: Variable | G23: ST-00309-02-01 | H23: 1 | I23: 2 | CE23: intruder system | CF23: Algemene_activiteit | CG23: Incident analyse | CH23: Variable | CI23: =IFERROR(INDIRECT(CH23),"") -> ST-00309-02-01 | CJ23: 2.5 | CM23: Fire protection | CN23: Algemene_activiteit | CO23: coordinatie werken - uitvoering | CP23: Fixed | CQ23: =IFERROR(INDIRECT(CP23),"") -> ST-00309-01-01 | CR23: 2 | CY23: =IFERROR(INDIRECT(CX23),"") ->  | DD23: Algemene_activiteit | DE23: handover project (labeling, verificatie AsBuilts, manuals, …) | DF23: Fixed | DG23: =IFERROR(INDIRECT(DF23),"") -> ST-00309-01-01 | DH23: 3 | DJ23: IP telfonie,… | DL23: Algemene_activiteit | DM23: coordinatie werken - voorbereiding | DN23: Niet_Nemo_activiteit | DO23: =IFERROR(INDIRECT(DN23),"") -> Elia-imp. Nummer | DP23: 1 | DR23: WVB Elia | DW23: =IFERROR(INDIRECT(DV23),"") ->  | EU23: =IFERROR(INDIRECT(ET23),"") ->  | FC23: =IFERROR(INDIRECT(FB23),"") ->  | FK23: =IFERROR(INDIRECT(FJ23),"") ->  | FS23: =IFERROR(INDIRECT(FR23),"") ->  | GA23: =IFERROR(INDIRECT(FZ23),"") ->  | GI23: =IFERROR(INDIRECT(GH23),"") ->  | HG23: =IFERROR(INDIRECT(HF23),"") ->  | HO23: =IFERROR(INDIRECT(HN23),"") -> 
D24: curatief_onderhoud | E24: HVAC Building & airco | F24: Variable | G24: ST-00309-02-01 | H24: 1 | CE24: Voorbereiding Elia | CH24: Niet_Nemo_activiteit | CI24: =IFERROR(INDIRECT(CH24),"") -> Elia-imp. Nummer | CJ24: 1.25 | CN24: Algemene_activiteit | CO24: peterschap post | CP24: Fixed | CQ24: =IFERROR(INDIRECT(CP24),"") -> ST-00309-01-01 | CR24: 1.25 | CT24: Algemene operationele taken. | CY24: =IFERROR(INDIRECT(CX24),"") ->  | DG24: =IFERROR(INDIRECT(DF24),"") ->  | DL24: Algemene_activiteit | DN24: Niet_Nemo_activiteit | DO24: =IFERROR(INDIRECT(DN24),"") -> Elia-imp. Nummer | DP24: 1 | DR24: verplaatsing | DW24: =IFERROR(INDIRECT(DV24),"") ->  | EU24: =IFERROR(INDIRECT(ET24),"") ->  | FC24: =IFERROR(INDIRECT(FB24),"") ->  | FK24: =IFERROR(INDIRECT(FJ24),"") ->  | FS24: =IFERROR(INDIRECT(FR24),"") ->  | GA24: =IFERROR(INDIRECT(FZ24),"") ->  | GI24: =IFERROR(INDIRECT(GH24),"") ->  | HG24: =IFERROR(INDIRECT(HF24),"") ->  | HO24: =IFERROR(INDIRECT(HN24),"") -> 
CI25: =IFERROR(INDIRECT(CH25),"") ->  | CN25: Algemene_activiteit | CO25: coordinatie werken - voorbereiding | CP25: Variable | CQ25: =IFERROR(INDIRECT(CP25),"") -> ST-00309-02-01 | CS25: 0.5 | CT25: voorbereiding TFO L3 | CY25: =IFERROR(INDIRECT(CX25),"") ->  | DG25: =IFERROR(INDIRECT(DF25),"") ->  | DO25: =IFERROR(INDIRECT(DN25),"") ->  | DW25: =IFERROR(INDIRECT(DV25),"") ->  | EU25: =IFERROR(INDIRECT(ET25),"") ->  | FC25: =IFERROR(INDIRECT(FB25),"") ->  | FK25: =IFERROR(INDIRECT(FJ25),"") ->  | FS25: =IFERROR(INDIRECT(FR25),"") ->  | GA25: =IFERROR(INDIRECT(FZ25),"") ->  | GI25: =IFERROR(INDIRECT(GH25),"") ->  | HG25: =IFERROR(INDIRECT(HF25),"") ->  | HO25: =IFERROR(INDIRECT(HN25),"") -> 
B26: w | D26: Algemene_activiteit | E26: handover project (labeling, verificatie AsBuilts, manuals, …) | F26: Fixed | G26: ST-00309-01-01 | H26: 5 | AB26: Algemene_activiteit | AC26: coordinatie werken - voorbereiding | AD26: Fixed | AE26: ST-00309-01-01 | AF26: 2 | AJ26: Algemene_activiteit | AK26: handover project (labeling, verificatie AsBuilts, manuals, …) | AL26: Fixed | AM26: ST-00309-01-01 | AN26: 4.75 | AR26: Algemene_activiteit | AS26: schakelen en veiligstellen | AT26: Niet_Nemo_activiteit | AU26: =IFERROR(INDIRECT(AT26),"") -> Elia-imp. Nummer | AZ26: Algemene_activiteit | BA26: coordinatie werken - voorbereiding | BB26: Fixed | BC26: =IFERROR(INDIRECT(BB26),"") -> ST-00309-01-01 | BD26: 1 | BH26: Algemene_activiteit | BI26: administratie | BJ26: Fixed | BK26: =IFERROR(INDIRECT(BJ26),"") -> ST-00309-01-01 | BL26: 1 | CI26: =IFERROR(INDIRECT(CH26),"") ->  | CQ26: =IFERROR(INDIRECT(CP26),"") ->  | CY26: =IFERROR(INDIRECT(CX26),"") ->  | DG26: =IFERROR(INDIRECT(DF26),"") ->  | DO26: =IFERROR(INDIRECT(DN26),"") ->  | DW26: =IFERROR(INDIRECT(DV26),"") ->  | EU26: =IFERROR(INDIRECT(ET26),"") ->  | FC26: =IFERROR(INDIRECT(FB26),"") ->  | FG26: Opname tellers voor AM | FH26: preventatief_onderhoud | FJ26: Fixed | FK26: =IFERROR(INDIRECT(FJ26),"") -> ST-00309-01-01 | FL26: 2 | FP26: Algemene_activiteit | FQ26: schakelen en veiligstellen | FR26: Niet_Nemo_activiteit | FS26: =IFERROR(INDIRECT(FR26),"") -> Elia-imp. Nummer | FT26: 2.5 | FV26: Schakelen 150-385 | GA26: =IFERROR(INDIRECT(FZ26),"") ->  | GI26: =IFERROR(INDIRECT(GH26),"") ->  | HG26: =IFERROR(INDIRECT(HF26),"") ->  | HO26: =IFERROR(INDIRECT(HN26),"") -> 
D27: Algemene_activiteit | E27: schakelen en veiligstellen | F27: Fixed | G27: ST-00309-01-01 | H27: 2 | W27: =IFERROR(INDIRECT(V27),"") ->  | AB27: Algemene_activiteit | AC27: handover project (labeling, verificatie AsBuilts, manuals, …) | AD27: Fixed | AE27: =IFERROR(INDIRECT(AD27),"") -> ST-00309-01-01 | AF27: 5.75 | AJ27: Algemene_activiteit | AK27: coordinatie werken - uitvoering | AL27: Fixed | AM27: =IFERROR(INDIRECT(AL27),"") -> ST-00309-01-01 | AN27: 2 | AR27: Algemene_activiteit | AS27: coordinatie werken - voorbereiding | AT27: Fixed | AU27: ST-00309-01-01 | AV27: 1 | AZ27: curatief_onderhoud | BA27: Building - site access and security | BB27: Fixed | BC27: ST-00309-01-01 | BD27: 6.75 | BH27: Algemene_activiteit | BI27: coordinatie werken - voorbereiding | BJ27: Fixed | BK27: ST-00309-01-01 | BL27: 2 | BS27: =IFERROR(INDIRECT(BR27),"") ->  | CA27: =IFERROR(INDIRECT(BZ27),"") ->  | EE27: =IFERROR(INDIRECT(ED27),"") ->  | EM27: =IFERROR(INDIRECT(EL27),"") ->  | FG27: Begeleiding JPS | FH27: Algemene_activiteit | FI27: handover project (labeling, verificatie AsBuilts, manuals, …) | FJ27: Fixed | FK27: ST-00309-01-01 | FL27: 1.5 | FP27: Algemene_activiteit | FQ27: coordinatie werken - uitvoering | FR27: Fixed | FS27: ST-00309-01-01 | FT27: 2 | GQ27: =IFERROR(INDIRECT(GP27),"") ->  | GY27: =IFERROR(INDIRECT(GX27),"") -> 
D28: curatief_onderhoud | E28: C&P - AC | F28: Variable | G28: =IFERROR(INDIRECT(F28),"") -> ST-00309-02-01 | H28: 1 | I28: 2 | AB28: Algemene_activiteit | AC28: handover project (labeling, verificatie AsBuilts, manuals, …) | AD28: Variable | AE28: ST-00309-02-01 | AF28: 1 | AJ28: preventatief_onderhoud | AK28: auxiliary power supply | AL28: Fixed | AM28: ST-00309-01-01 | AN28: 1 | AR28: Algemene_activiteit | AS28: handover project (labeling, verificatie AsBuilts, manuals, …) | AT28: Fixed | AU28: ST-00309-01-01 | AV28: 3 | BC28: =IFERROR(INDIRECT(BB28),"") ->  | BH28: Algemene_activiteit | BI28: handover project (labeling, verificatie AsBuilts, manuals, …) | BJ28: Fixed | BK28: ST-00309-01-01 | BL28: 4 | FG28: Herstelling schuifpoort | FH28: curatief_onderhoud | FI28: Building - site access and security | FJ28: Variable | FK28: ST-00309-02-01 | FL28: 1 | FP28: Algemene_activiteit | FQ28: handover project (labeling, verificatie AsBuilts, manuals, …) | FR28: Fixed | FS28: ST-00309-01-01 | FT28: 2.5
AJ29: Algemene_activiteit | AK29: handover project (labeling, verificatie AsBuilts, manuals, …) | AL29: Variable | AM29: ST-00309-02-01 | AO29: 0.5 | BH29: Algemene_activiteit | BI29: schakelen en veiligstellen | BJ29: Variable | BK29: ST-00309-02-01 | BL29: 0.5 | FG29: Heropstart Alarminstallatie | FH29: curatief_onderhoud | FI29: Building - site access and security | FJ29: Variable | FK29: ST-00309-02-01 | FL29: 1
BK30: =IFERROR(INDIRECT(BJ30),"") ->  | FH30: Algemene_activiteit | FI30: handover project (labeling, verificatie AsBuilts, manuals, …) | FJ30: Fixed | FK30: ST-00309-01-01 | FL30: 2.25
B31: v | AU31: =IFERROR(INDIRECT(AT31),"") ->  | EI31: Introductie site | EJ31: Algemene_activiteit | EK31: algemene technische opleidingen krijgen (hoogwerker, stelling ,…) | EL31: Fixed | EM31: ST-00309-01-01 | EN31: 7.75 | ER31: Algemene_activiteit | ES31: algemene technische opleidingen krijgen (hoogwerker, stelling ,…) | ET31: Fixed | EU31: ST-00309-01-01 | EV31: 6.75 | EZ31: Algemene_activiteit | FA31: algemene technische opleidingen krijgen (hoogwerker, stelling ,…) | FB31: Fixed | FC31: ST-00309-01-01 | FD31: 5.25 | FG31: Opname tellers voor AM | FH31: preventatief_onderhoud | FJ31: Fixed | FK31: =IFERROR(INDIRECT(FJ31),"") -> ST-00309-01-01 | FL31: 2 | FP31: Algemene_activiteit | FQ31: administratie | FR31: Fixed | FS31: ST-00309-01-01 | FT31: 2
EQ32: MM diesel | ER32: preventatief_onderhoud | ES32: auxiliary power supply | ET32: Fixed | EU32: ST-00309-01-01 | EV32: 1 | EZ32: curatief_onderhoud | FA32: Building - site access and security | FB32: Variable | FC32: ST-00309-02-01 | FD32: 2.5 | FE32: 1 | FF32: problemen met inbraakalarm/ schuifpoort | FG32: Herstelling schuifpoort | FH32: curatief_onderhoud | FI32: Building - site access and security | FJ32: Variable | FK32: =IFERROR(INDIRECT(FJ32),"") -> ST-00309-02-01 | FL32: 1 | FP32: Algemene_activiteit | FR32: Niet_Nemo_activiteit | FS32: Elia-imp. Nummer | FT32: 2
ER33: Algemene_activiteit | ES33: coordinatie werken - uitvoering | ET33: Variable | EU33: ST-00309-02-01 | EW33: 1 | EX33: Afsluiten site, alarm wapenen,… | FH33: Algemene_activiteit | FI33: algemene technische opleidingen krijgen (hoogwerker, stelling ,…) | FJ33: Fixed | FK33: ST-00309-01-01 | FL33: 4.75 | FP33: Algemene_activiteit | FQ33: algemene technische opleidingen krijgen (hoogwerker, stelling ,…) | FR33: Fixed | FS33: ST-00309-01-01 | FT33: 3
B36: u | AB36: Algemene_activiteit | AC36: handover project (labeling, verificatie AsBuilts, manuals, …) | AD36: Variable | AE36: ST-00309-02-01 | AF36: 6.75 | AH36: Verhuis materiaal Siemens | AJ36: Algemene_activiteit | AK36: handover project (labeling, verificatie AsBuilts, manuals, …) | AL36: Fixed | AM36: ST-00309-01-01 | AN36: 4 | AR36: Algemene_activiteit | AS36: handover project (labeling, verificatie AsBuilts, manuals, …) | AT36: Variable | AU36: ST-00309-02-01 | AV36: 7 | AZ36: Algemene_activiteit | BA36: handover project (labeling, verificatie AsBuilts, manuals, …) | BB36: Variable | BC36: ST-00309-02-01 | BD36: 3.25 | BH36: Algemene_activiteit | BI36: interventie wacht | BJ36: Variable | BK36: ST-00309-02-01 | BL36: 2.5
AB37: Algemene_activiteit | AC37: coordinatie werken - uitvoering | AD37: Fixed | AE37: ST-00309-01-01 | AF37: 1 | AJ37: Algemene_activiteit | AK37: handover project (labeling, verificatie AsBuilts, manuals, …) | AL37: Variable | AM37: ST-00309-02-01 | AN37: 3 | AR37: Algemene_activiteit | AS37: administratie | AT37: Fixed | AU37: ST-00309-01-01 | AV37: 0.75
AB38: Algemene_activiteit | AC38: handover project (labeling, verificatie AsBuilts, manuals, …) | AD38: Variable | AE38: ST-00309-02-01 | AF38: 1 | AH38: verhuis materiaal Siemens | AJ38: Algemene_activiteit | AK38: administratie | AL38: Fixed | AM38: ST-00309-01-01 | AN38: 0.75
B41: t | DC41: Weekly meeting | DD41: Algemene_activiteit | DE41: planning en coordinatie werken | DF41: Meeting | DG41: ST-00309-01-03 | DH41: 1
AA42: Creation of flow chart "alarm at Herdersbrug" | AB42: Algemene_activiteit | AC42: planning en coordinatie werken | AD42: Fixed | AE42: ST-00309-01-01 | AF42: 2 | AY42: replacement SHU at Monthly meeting Siemens CS | AZ42: Algemene_activiteit | BA42: planning en coordinatie werken | BB42: Meeting | BC42: ST-00309-01-03 | BD42: 7.6
CI46: =IFERROR(INDIRECT(CH46),"") ->  | CQ46: =IFERROR(INDIRECT(CP46),"") ->  | CY46: =IFERROR(INDIRECT(CX46),"") ->  | DG46: =IFERROR(INDIRECT(DF46),"") ->  | DO46: =IFERROR(INDIRECT(DN46),"") ->  | DW46: =IFERROR(INDIRECT(DV46),"") ->  | EU46: =IFERROR(INDIRECT(ET46),"") ->  | FC46: =IFERROR(INDIRECT(FB46),"") ->  | FK46: =IFERROR(INDIRECT(FJ46),"") ->  | FS46: =IFERROR(INDIRECT(FR46),"") ->  | GA46: =IFERROR(INDIRECT(FZ46),"") ->  | GI46: =IFERROR(INDIRECT(GH46),"") ->  | HG46: =IFERROR(INDIRECT(HF46),"") ->  | HO46: =IFERROR(INDIRECT(HN46),"") -> 

Sheet Keuzetabellen
B1: Type | C1: Imputatienummer
B2: Fixed | C2: ST-00309-01-01
B3: Variable | C3: ST-00309-02-01
B4: Yearly_maintenance | C4: ST-00309-01-02
B5: Meeting | C5: ST-00309-01-03
B6: Niet_Nemo_activiteit | C6: Elia-imp. Nummer
B8: Algemene_activiteit | C8: preventatief_onderhoud | D8: curatief_onderhoud | E8: incident _preparedness_and_procedures | F8: training_krijgen
B9: administratie | C9: auxiliary power supply | D9: auxiliary power supply | E9: auxiliary power supply | F9: auxiliary power supply
B10: algemene technische opleidingen krijgen (hoogwerker, stelling ,…) | C10: Building - site access and security | D10: Building - site access and security | E10: Building - site access and security | F10: Building - site access and security
B11: Asset Management | C11: Building, terain and other building services | D11: Building, terain and other building services | E11: Building, terain and other building services | F11: Building, terain and other building services
B12: beheer plannen | C12: C&P - AC | D12: C&P - AC | E12: C&P - AC | F12: C&P - AC
B13: coordinatie werken - uitvoering | C13: C&P - HVDC | D13: HVDC C&P | E13: HVDC C&P | F13: HVDC C&P
B14: coordinatie werken - voorbereiding | C14: C&P - HVDC IT systemen | D14: HVDC IT systemen | E14: HVDC IT systemen | F14: HVDC IT systemen
B15: Incident analyse | C15: CWC | D15: CWC | E15: CWC | F15: CWC
B16: peterschap post | C16: Firefighting | D16: Firefighting | E16: Firefighting | F16: Firefighting
B17: planning en coordinatie werken | C17: HV - AC switchgear | D17: HV - AC switchgear | E17: HV - AC switchgear | F17: HV - AC switchgear
B18: schakelen en veiligstellen | C18: HV - Converter towers | D18: HV - Converter towers | E18: HV - Converter towers | F18: HV - Converter towers
B19: tour post en kleine preventieve inspecties | C19: HV - DC switchgear | D19: HV - DC switchgear | E19: HV - DC switchgear | F19: HV - DC switchgear
B20: veiligheidsopleidingen geven | C20: HV - Interface transformer | D20: HV - Interface transformer | E20: HV - Interface transformer | F20: HV - Interface transformer
B21: veiligheidsopleidingen krijgen | C21: HVAC "critical" | D21: HVAC "critical" | E21: HVAC "critical" | F21: HVAC "critical"
B22: interventie wacht | C22: HVAC Building & airco | D22: HVAC Building & airco | E22: HVAC Building & airco | F22: HVAC Building & airco
B23: handover project (labeling, verificatie AsBuilts, manuals, …) | F23: NDS
B27: wie
B28: naam 1
B29: naam 2 | D29: keuzetabel beschrijving
B30: naam 3 | D30: administratie
B31: naam 4 | D31: algemene technische opleidingen krijgen
B32: naam 5 | D32: Asset Management
B33: naam 6 | D33: beheer plannen
B34: naam 7 | D34: coordinatie werken - uitvoering
B35: naam 8 | D35: coordinatie werken - voorbereiding
B36: naam 9 | D36: Incident analyse
B37: naam 10 | D37: peterschap post
D38: planning en coordinatie werken
D39: schakelen en veiligstellen
D40: tour post en kleine preventieve inspecties
D41: veiligheidsopleidingen geven
D42: veiligheidsopleidingen krijgen
D43: handover project
D44: auxiliary power supply
D45: Building - site access and security
D46: Building, terain and other building services
D47: C&P - AC
D48: C&P - HVDC
D49: C&P - HVDC IT systemen
D50: CWC
D51: Firefighting
D52: HV - AC switchgear
D53: HV - Converter towers
D54: HV - DC switchgear
D55: HV - Interface transformer
D56: HVAC "critical"
D57: HVAC Building & airco
D58: NDS

Sheet Facturatie
B1: =IF('Februari 2019'!F16="fixed",'Februari 2019'!H16,0) -> 4
B2: =IF('Februari 2019'!F17="fixed",'Februari 2019'!H17,0) -> 2
B3: =IF('Februari 2019'!F18="fixed",'Februari 2019'!H18,0) -> 0
B4: =IF('Februari 2019'!F19="fixed",'Februari 2019'!H19,0) -> 0 | C4: =IF(B4=Variable,'Februari 2019'!H18,"") -> 
B5: =IF('Februari 2019'!F20="fixed",'Februari 2019'!H20,0) -> 0

Sheet Blad1
A1: Z | D1: y | G1: x | J1: w | N1: v | P1: u | S1: t | V1: Totaal
A2: fixed | B2: variabel | C2: overuren | D2: fixed | E2: variabel | F2: overuren | G2: fixed | H2: variabel | I2: overuren | J2: fixed | K2: variabel | L2: overuren | M2: fixed | N2: variabel | O2: overuren | P2: fixed | Q2: variabel | R2: overuren | S2: fixed | T2: variabel | U2: overuren | V2: fixed | W2: variabel | X2: overuren
A3: =SUM(A4:A51) -> 91.25 | B3: =SUM(B4:B51) -> 9.25 | C3: =SUM(C4:C51) -> 17.5 | D3: =SUM(D4:D51) -> 63.75 | E3: =SUM(E4:E51) -> 21.5 | F3: =SUM(F4:F51) -> 12.75 | G3: =SUM(G4:G51) -> 43.25 | H3: =SUM(H4:H51) -> 6.5 | I3: =SUM(I4:I51) -> 2.5 | J3: =SUM(J4:J51) -> 51.5 | K3: =SUM(K4:K51) -> 4.5 | L3: =SUM(L4:L51) -> 2.5 | M3: =SUM(M4:M51) -> 32.5 | N3: =SUM(N4:N51) -> 3.5 | O3: 2 | P3: 6.5 | Q3: 23.5 | R3: 0 | S3: 2 | T3: 0 | U3: 0 | V3: =SUMIF($A$2:$U$3,V2,$A$3:$U$3) -> 290.75 | W3: =SUMIF($A$2:$U$3,W2,$A$3:$U$3) -> 68.75 | X3: 37.25
A4: 4 | B4: 3 | C4: 2 | D4: 4 | E4: 2 | F4: 2 | G4: 3 | H4: 2 | I4: 2 | J4: 5 | K4: 1 | L4: 2 | M4: 7.75 | N4: 2.5 | O4: 1 | P4: 4 | Q4: 6.75 | S4: 2
A5: 3 | B5: 1.75 | C5: 5 | D5: 2 | E5: 7 | F5: 1.75 | G5: 3 | H5: 1 | I5: 0.5 | J5: 2 | K5: 1 | L5: 0.5 | M5: 6.75 | N5: 1 | O5: 1 | P5: 1 | Q5: 7
A6: 3.75 | B6: 1.5 | C6: 2 | D6: 6.75 | E6: 2.5 | F6: 2.5 | G6: 1.5 | H6: 2.5 | J6: 4.75 | K6: 1 | M6: 5.25 | P6: 0.75 | Q6: 3.25
A7: 3 | B7: 1 | C7: 1.5 | D7: 3 | E7: 1 | F7: 2 | G7: 3.25 | H7: 1 | J7: 1 | K7: 0.5 | M7: 2 | P7: 0.75 | Q7: 2.5
A8: 2 | B8: 2 | C8: 1.5 | D8: 1 | E8: 2 | F8: 1 | G8: 2 | J8: 1 | K8: 1 | M8: 2 | Q8: 3
A9: 1.25 | C9: 1 | D9: 3.75 | E9: 1 | F9: 1 | G9: 1 | J9: 2 | M9: 1 | Q9: 1
A10: 4 | C10: 2 | D10: 2 | E10: 1 | F10: 2.5 | G10: 3 | J10: 2 | M10: 4.75
A11: 1 | C11: 2.5 | D11: 4 | E11: 3 | G11: 2.75 | J11: 5.75 | M11: 3
A12: 1.5 | D12: 2 | E12: 1 | G12: 1.75 | J12: 2
A13: 3 | D13: 1 | E13: 1 | G13: 2 | J13: 1
A14: 5 | D14: 1 | G14: 3 | J14: 6.75
A15: 2 | D15: 2 | G15: 1.25 | J15: 2
A16: 2 | D16: 4 | G16: 5 | J16: 1.5
A17: 2 | D17: 2.75 | G17: 2 | J17: 2
A18: 2 | D18: 3 | G18: 4.75 | J18: 1
A19: 1 | D19: 2 | G19: 1 | J19: 3
A20: 2 | D20: 4.75 | G20: 1 | J20: 4
A21: 3 | D21: 2.75 | G21: 2 | J21: 2.5
A22: 2 | D22: 2 | J22: 2.25
A23: 1 | D23: 3
A24: 3 | D24: 2.25
A25: 3 | D25: 2
A26: 3 | D26: 1
A27: 2 | D27: 1.75
A28: 1.75
A29: 2.75
A30: 1.5
A31: 2
A32: 2
A33: 2
A34: 1.5
A35: 1.75
A36: 2.75
A37: 2.75
A38: 1.75
A39: 3.25
A40: 2.75
A41: 1
A42: 2.25
